bitfinex-derivatives/quotes_ETHF0:USTF0_20210401
["timestamp","ask_amount","ask_price","bid_price","bid_amount"]
[1617289223529,14.8211,1931.3,1931.2,3.91465]
[1617289224533,14.8211,1931.3,1931.2,4.93745]
[1617289229437,14.7366,1931.3,1931.2,4.93745]
[1617289233643,11.9415,1931.3,1931.2,4.93745]
[1617289233842,1.0,1931.5,1931.3,64.4913]
[1617289234043,1.0,1931.5,1931.3,66.4913]
[1617289235043,0.0001,1931.5,1931.3,66.4913]
[1617289235243,82.7939,1932.5,1931.3,66.4913]
[1617289235443,15.0906,1933.3,1931.3,2.0]
[1617289235645,15.0906,1933.3,1933.2,3.98655]
[1617289237048,15.0906,1933.3,1933.2,2.90695]
[1617289237645,17.99755,1933.3,1933.2,2.90695]
[1617289240149,17.99755,1933.3,1933.2,75.74785]
[1617289241449,17.99755,1933.3,1933.2,2.90695]
[1617289241651,67.9204,1933.0,1932.8,2.90695]
[1617289241853,67.9204,1933.0,1931.6,67.9204]
[1617289242051,69.562,1933.0,1931.6,67.9204]
[1617289242451,99.562,1933.0,1931.6,67.9204]
[1617289243253,69.562,1933.0,1931.6,67.9204]
[1617289243450,71.562,1933.0,1931.6,67.9204]
[1617289243651,3.6416,1933.0,1932.7,2.90695]
[1617289244050,2.0,1933.0,1932.7,2.90695]
[1617289244350,32.0,1933.0,1932.7,2.90695]
[1617289244552,32.0,1933.0,1932.0,80.6062]
[1617289244750,33.449,1933.0,1931.2,1.0228]
[1617289244952,73.9767,1932.7,1931.2,1.0228]
[1617289245150,103.9767,1932.7,1931.1,73.9767]
[1617289245552,105.9767,1932.7,1931.1,73.9767]
[1617289245751,32.0,1932.7,1932.1,2.90695]
[1617289245951,30.0,1932.8,1932.1,2.90695]
[1617289246553,31.0389,1932.8,1932.1,2.90695]
[1617289246957,30.0,1932.8,1932.1,2.90695]
[1617289247756,30.0,1932.8,1932.3,2.90695]
[1617289248161,30.0,1933.0,1932.3,2.90695]
[1617289248356,2.0,1932.9,1932.3,2.90695]
[1617289248556,32.0,1932.9,1932.3,2.90695]
[1617289249157,2.0,1932.9,1932.3,2.90695]
[1617289249358,32.0,1932.9,1932.3,2.90695]
[1617289249758,2.90695,1932.4,1932.3,2.90695]
[1617289250357,2.90695,1932.4,1931.8,70.3909]
[1617289251258,32.90695,1932.4,1931.8,70.3909]
[1617289251859,2.0,1932.3,1931.9,2.90695]
[1617289252059,32.0,1932.3,1931.9,2.90695]
[1617289253960,2.90695,1932.0,1931.9,2.90695]
[1617289260065,2.90695,1932.2,1931.9,2.90695]
[1617289260267,2.90695,1932.2,1931.9,3.91565]
[1617289261567,2.90695,1932.2,1931.9,2.90695]
[1617289262169,2.90695,1932.0,1931.9,2.90695]
[1617289268980,2.90695,1932.0,1931.7,63.9094]
[1617289269378,65.5288,1931.9,1930.6,1.0216]
[1617289269578,95.5288,1931.9,1930.4,65.5288]
[1617289269779,13.9774,1931.8,1930.4,65.5288]
[1617289270284,43.9774,1931.8,1931.2,2.90695]
[1617289270482,43.9774,1931.8,1930.4,65.5288]
[1617289271079,45.9774,1931.8,1930.4,65.5288]
[1617289272181,45.9774,1931.8,1931.2,2.90695]
[1617289274183,2.90695,1931.3,1931.2,2.90695]
[1617289274385,2.90695,1931.3,1931.1,86.0079]
[1617289281491,78.32705,1931.3,1930.9,2.90695]
[1617289282294,2.90695,1931.0,1930.9,2.90695]
[1617289283092,2.90695,1931.0,1930.2,75.4201]
[1617289283093,32.90695,1931.0,1930.2,75.4201]
[1617289283496,14.229,1930.9,1930.2,75.4201]
[1617289284296,14.229,1930.9,1930.4,2.90695]
[1617289285696,80.3871,1930.6,1930.4,2.90695]
[1617289286297,2.90695,1930.5,1930.4,2.90695]
[1617289288899,2.90695,1930.5,1929.4,80.3871]
[1617289289699,2.90695,1930.5,1929.4,81.4333]
[1617289290398,111.5721,1930.6,1929.9,2.90695]
[1617289291699,113.5721,1930.6,1929.9,2.90695]
[1617289292401,2.90695,1930.0,1929.9,2.90695]
[1617289293203,80.3871,1930.6,1929.9,2.90695]
[1617289293603,14.229,1930.9,1929.9,2.90695]
[1617289293804,14.229,1930.9,1930.0,76.5495]
[1617289294504,14.229,1930.9,1930.6,2.90695]
[1617289295304,30.0,1930.8,1930.0,76.5495]
[1617289295705,2.0,1930.7,1930.0,76.5495]
[1617289295904,30.0,1930.6,1930.0,76.5495]
[1617289296106,2.0,1930.5,1930.0,76.5495]
[1617289296305,32.0,1930.5,1930.0,76.5495]
[1617289296506,2.90695,1930.1,1929.9,2.90695]
[1617289300208,2.90695,1930.1,1930.0,75.2397]
[1617289300809,2.90695,1930.1,1929.9,2.90695]
[1617289303611,32.90695,1930.1,1929.5,75.2834]
[1617289304012,34.90695,1930.1,1929.5,75.2834]
[1617289304517,2.90695,1929.6,1929.5,78.19035]
[1617289304717,4.19025,1929.6,1929.5,2.90695]
[1617289306432,34.19025,1929.6,1929.5,2.90695]
[1617289306625,34.19025,1929.6,1929.3,2.90695]
[1617289307025,103.32015,1929.6,1929.3,2.90695]
[1617289308223,73.32015,1929.6,1929.3,2.90695]
[1617289308625,2.90695,1929.4,1929.3,2.90695]
[1617289312529,32.90695,1929.4,1929.3,2.90695]
[1617289312730,2.90695,1929.4,1929.3,2.90695]
[1617289317034,2.90695,1929.4,1929.1,61.9784]
[1617289317234,32.90695,1929.4,1929.1,61.9784]
[1617289318635,30.0,1929.4,1929.2,2.90695]
[1617289318834,30.0,1929.8,1929.2,2.90695]
[1617289319234,2.0,1929.9,1929.2,2.90695]
[1617289320434,32.0,1929.9,1929.2,2.90695]
[1617289320635,2.90695,1929.3,1929.2,2.90695]
[1617289324237,2.90695,1929.3,1929.1,61.9784]
[1617289325037,2.90695,1929.3,1928.9,2.90695]
[1617289325038,4.40115,1929.3,1928.9,2.90695]
[1617289325239,107.9094,1929.2,1928.0,77.9094]
[1617289325639,14.5987,1929.1,1928.0,77.9094]
[1617289325839,44.5987,1929.1,1928.0,77.9094]
[1617289326841,44.5987,1929.1,1928.7,2.90695]
[1617289327942,14.5987,1929.1,1928.7,2.90695]
[1617289328145,14.5987,1929.1,1928.9,79.8068]
[1617289328745,2.90695,1929.0,1928.9,82.71375]
[1617289334746,14.5987,1929.1,1928.9,82.71375]
[1617289334946,14.5987,1929.1,1928.9,84.30805]
[1617289335749,14.5987,1929.1,1928.9,4.50125]
[1617289335949,3.0464,1931.1,1928.9,4.50125]
[1617289336148,2.0,1931.1,1929.1,59.7275]
[1617289336551,14.6167,1931.4,1929.2,2.0]
[1617289336952,14.6167,1931.4,1930.6,2.90695]
[1617289337151,14.6167,1931.4,1930.6,4.30625]
[1617289337353,14.6167,1931.4,1931.3,71.6066]
[1617289337552,14.6167,1931.4,1931.3,73.2379]
[1617289337956,14.6167,1931.4,1931.3,1.6313]
[1617289338955,17.52365,1931.4,1931.3,1.6313]
[1617289341557,17.52365,1931.4,1931.2,2.90695]
[1617289342859,17.52365,1931.4,1931.3,78.2967]
[1617289346161,17.52365,1931.4,1931.2,2.90695]
[1617289346362,19.05525,1931.4,1931.2,2.90695]
[1617289347161,19.05525,1931.4,1930.6,72.9817]
[1617289347361,17.52365,1931.4,1930.6,72.9817]
[1617289348865,14.6167,1931.4,1930.8,2.90695]
[1617289349466,44.6167,1931.4,1930.8,2.90695]
[1617289350068,14.6167,1931.4,1930.8,2.90695]
[1617289350667,44.6167,1931.4,1930.8,2.90695]
[1617289350968,2.90695,1930.9,1930.8,2.90695]
[1617289352674,2.88345,1930.9,1930.8,2.90695]
[1617289353674,14.6167,1931.4,1930.9,80.2222]
[1617289354975,14.6167,1931.4,1931.3,2.90695]
[1617289355179,14.6167,1931.4,1931.3,4.21565]
[1617289356675,14.6167,1931.4,1931.3,6.21565]
[1617289356875,11.6935,1931.4,1931.3,6.21565]
[1617289359878,11.0,1931.7,1931.3,6.21565]
[1617289360978,11.0,1931.7,1931.6,2.90695]
[1617289361180,11.0,1931.7,1931.6,4.90695]
[1617289361579,14.417,1932.3,1931.6,4.90695]
[1617289361779,14.417,1932.3,1931.7,72.6973]
[1617289361979,14.417,1932.3,1931.7,74.2487]
[1617289362981,14.417,1932.3,1932.2,2.90695]
[1617289368786,14.417,1932.3,1932.2,4.19235]
[1617289369187,14.417,1932.3,1932.2,6.19235]
[1617289371089,14.417,1932.3,1932.2,4.90695]
[1617289371289,14.417,1932.3,1932.2,2.90695]
[1617289375996,14.417,1932.3,1932.2,4.02135]
[1617289376999,14.417,1932.3,1932.2,2.90695]
[1617289378401,14.417,1932.3,1932.2,62.67175]
[1617289379203,17.32395,1932.3,1932.2,62.67175]
[1617289389313,17.32395,1932.3,1929.9,2.0]
[1617289389513,48.76795,1932.3,1930.7,70.1445]
[1617289391015,48.76795,1932.3,1930.7,71.1878]
[1617289391217,15.861,1932.3,1931.6,2.90695]
[1617289391415,14.417,1932.3,1931.6,2.90695]
[1617289391615,14.417,1932.3,1931.8,62.6693]
[1617289393319,14.417,1932.3,1932.0,2.90695]
[1617289395219,2.90695,1932.1,1932.0,2.90695]
[1617289399227,17.32395,1932.3,1932.0,2.90695]
[1617289399429,17.32395,1932.3,1932.0,4.01125]
[1617289401328,17.32395,1932.3,1932.2,2.90695]
[1617289401527,14.417,1932.3,1932.2,2.90695]
[1617289407231,17.32395,1932.3,1932.2,2.90695]
[1617289407734,17.32395,1932.3,1932.2,4.16625]
[1617289409731,14.417,1932.3,1932.2,4.16625]
[1617289415235,14.417,1932.3,1932.2,62.11245]
[1617289423245,14.417,1932.3,1932.2,4.16625]
[1617289425451,13.8131,1932.3,1932.2,4.16625]
[1617289426452,13.8131,1932.3,1932.2,6.16625]
[1617289427851,24.8131,1932.3,1932.2,6.16625]
[1617289429053,23.4588,1932.3,1932.2,6.16625]
[1617289429254,13.7897,1933.8,1932.3,71.6599]
[1617289429452,13.7897,1933.8,1933.6,2.90695]
[1617289429652,13.7897,1933.8,1933.6,3.97875]
[1617289431453,2.90695,1933.7,1933.6,3.97875]
[1617289437459,2.90695,1933.7,1933.6,86.97715]
[1617289437858,2.90695,1933.7,1933.6,3.97875]
[1617289444463,2.90695,1933.7,1933.6,2.90695]
[1617289445063,2.90695,1933.7,1933.6,4.11535]
[1617289448566,2.90695,1933.7,1933.6,2.90695]
[1617289448868,13.7897,1933.8,1933.6,2.90695]
[1617289453874,2.90695,1933.7,1933.4,2.90695]
[1617289455874,2.90695,1933.7,1933.6,2.90695]
[1617289456075,13.7897,1933.8,1933.6,2.90695]
[1617289457276,13.7897,1933.8,1933.7,85.7806]
[1617289457878,16.69665,1933.8,1933.7,85.7806]
[1617289458377,16.69665,1933.8,1933.6,2.90695]
[1617289458577,16.69665,1933.8,1933.7,1.6346]
[1617289459978,13.7897,1933.8,1933.7,1.6346]
[1617289463483,13.7897,1933.8,1933.6,2.90695]
[1617289463883,13.7897,1933.8,1933.6,72.51375]
[1617289465386,13.7897,1933.8,1933.6,2.90695]
[1617289473294,13.7897,1933.8,1933.7,62.7037]
[1617289473494,13.7897,1933.8,1933.7,63.7323]
[1617289473694,13.7897,1933.8,1933.7,62.7037]
[1617289475097,13.7897,1933.8,1933.1,63.874]
[1617289475298,15.7897,1933.8,1933.1,63.874]
[1617289475697,13.7897,1933.8,1933.1,63.874]
[1617289476097,13.7897,1933.8,1933.5,2.90695]
[1617289476699,12.0,1933.7,1933.5,2.90695]
[1617289477999,2.90695,1933.6,1933.5,2.90695]
[1617289478400,2.90695,1933.6,1933.5,82.02865]
[1617289481804,2.90695,1933.6,1933.5,79.1217]
[1617289482206,2.90695,1933.6,1933.5,79.1017]
[1617289484106,4.90695,1933.6,1933.5,79.1017]
[1617289484507,4.90695,1933.6,1932.9,2.90695]
[1617289486007,2.90695,1933.0,1932.9,2.90695]
[1617289490113,2.90695,1933.0,1932.6,2.90695]
[1617289490712,4.90695,1933.0,1932.6,2.90695]
[1617289491113,34.90695,1933.0,1932.4,64.746]
[1617289492113,2.90695,1932.5,1932.4,64.746]
[1617289492315,4.01725,1932.5,1932.4,64.746]
[1617289495616,2.90695,1932.5,1932.4,64.746]
[1617289496016,3.92835,1932.5,1932.4,64.746]
[1617289496217,2.90695,1932.5,1932.4,64.746]
[1617289496916,4.48675,1932.5,1932.4,64.746]
[1617289497916,2.90695,1932.5,1932.4,64.746]
[1617289499219,4.90695,1932.5,1932.4,64.746]
[1617289499818,2.90695,1932.5,1932.4,64.746]
[1617289504223,2.90695,1932.5,1932.4,67.65295]
[1617289507025,2.90695,1932.5,1932.4,69.07175]
[1617289507525,28.6269,1932.9,1932.4,69.07175]
[1617289507725,28.6269,1932.9,1932.4,4.32575]
[1617289508326,28.6269,1932.9,1932.8,2.90695]
[1617289508527,28.6269,1932.9,1932.8,4.37675]
[1617289510530,28.6269,1932.9,1932.8,2.90695]
[1617289517644,28.6269,1932.9,1932.8,80.26385]
[1617289519242,28.6269,1932.9,1932.8,81.76425]
[1617289524645,28.6269,1932.9,1932.8,80.26385]
[1617289525645,28.6269,1932.9,1932.8,81.26945]
[1617289529344,29.6483,1932.9,1932.8,81.26945]
[1617289529544,28.6269,1932.9,1932.8,81.26945]
[1617289530746,28.6269,1932.9,1932.8,80.26385]
[1617289537954,28.6269,1932.9,1932.8,2.90695]
[1617289539158,28.6269,1932.9,1932.8,4.28665]
[1617289541359,28.6269,1932.9,1932.8,2.90695]
[1617289547564,28.6269,1932.9,1932.8,3.96165]
[1617289547764,27.2991,1932.9,1932.8,3.96165]
[1617289547964,11.5446,1932.9,1932.8,3.96165]
[1617289548164,11.3473,1932.9,1932.8,3.96165]
[1617289548364,12.0,1933.7,1932.8,3.96165]
[1617289548565,12.0,1933.7,1933.6,2.90695]
[1617289548769,12.0,1933.7,1933.6,4.11285]
[1617289552869,12.0,1933.7,1933.6,5.13635]
[1617289553672,12.0,1933.7,1933.6,4.11285]
[1617289556077,12.0,1933.7,1933.6,2.90695]
[1617289559683,12.0,1933.7,1933.6,3.92705]
[1617289559883,12.0,1933.7,1933.6,2.90695]
[1617289560883,12.0,1933.7,1933.6,3.93265]
[1617289561083,12.0,1933.7,1933.6,2.90695]
[1617289562791,14.90695,1933.7,1933.6,2.90695]
[1617289564689,14.90695,1933.7,1933.4,82.14795]
[1617289565891,14.90695,1933.7,1933.4,79.241]
[1617289566695,2.90695,1933.5,1933.4,79.241]
[1617289566894,4.51015,1933.5,1933.4,79.241]
[1617289571002,2.90695,1933.5,1933.4,79.241]
[1617289579608,2.90695,1933.5,1933.0,2.90695]
[1617289580406,32.90695,1933.5,1933.0,2.90695]
[1617289580807,2.90695,1933.1,1932.8,2.90695]
[1617289581007,4.36425,1933.1,1932.8,2.90695]
[1617289582810,2.90695,1932.9,1932.8,2.90695]
[1617289584813,84.80565,1932.9,1932.8,2.90695]
[1617289585610,84.80565,1932.9,1931.9,81.8987]
[1617289586914,81.8987,1932.9,1932.6,2.90695]
[1617289588814,2.90695,1932.7,1932.6,2.90695]
[1617289589615,3.95725,1932.7,1932.6,2.90695]
[1617289590615,3.95725,1932.7,1931.9,81.8987]
[1617289590816,1.0503,1932.7,1932.0,2.90695]
[1617289591018,84.3211,1932.3,1932.0,2.90695]
[1617289591217,85.5661,1932.3,1932.0,2.90695]
[1617289592526,84.3211,1932.3,1932.0,2.90695]
[1617289592825,2.90695,1932.1,1932.0,2.90695]
[1617289596130,2.90695,1932.1,1932.0,72.10095]
[1617289597632,2.90695,1932.1,1932.0,2.90695]
[1617289609245,75.75465,1932.1,1932.0,2.90695]
[1617289611645,75.75465,1932.1,1932.0,3.94715]
[1617289611847,75.75465,1932.1,1932.0,2.90695]
[1617289619157,2.90695,1932.1,1932.0,2.90695]
[1617289619357,2.90695,1932.1,1932.0,4.19015]
[1617289621160,2.90695,1932.3,1932.0,4.19015]
[1617289622861,2.90695,1932.3,1932.0,2.90695]
[1617289623262,2.90695,1932.3,1932.2,2.90695]
[1617289625964,2.90695,1932.3,1932.2,4.32205]
[1617289627066,2.90695,1932.3,1932.2,2.90695]
[1617289628168,2.90695,1932.3,1932.2,4.51875]
[1617289629266,69.9631,1932.2,1931.9,2.90695]
[1617289631168,2.90695,1932.0,1931.7,2.90695]
[1617289633274,2.90695,1931.8,1931.7,2.90695]
[1617289640082,2.90695,1931.8,1931.3,69.9631]
[1617289641283,2.90695,1931.4,1931.3,72.87005]
[1617289642585,2.90695,1931.4,1931.3,2.90695]
[1617289649394,2.90695,1931.6,1931.3,2.90695]
[1617289651399,2.90695,1931.6,1931.5,2.90695]
[1617289671917,2.90695,1931.6,1931.5,4.32285]
[1617289673519,76.0387,1931.6,1931.5,2.90695]
[1617289675422,78.94565,1931.6,1931.5,2.90695]
[1617289676422,2.90695,1931.6,1931.5,2.90695]
[1617289678823,4.90695,1931.6,1931.5,2.90695]
[1617289680028,4.90695,1931.6,1931.0,72.3841]
[1617289681527,2.0,1931.6,1931.2,2.90695]
[1617289681929,73.1585,1931.3,1931.2,2.90695]
[1617289682330,73.1585,1931.3,1930.3,4.14412617]
[1617289682532,73.1585,1931.3,1930.2,4.1448566]
[1617289682731,73.1585,1931.3,1930.2,5.96957818]
[1617289682932,73.1585,1931.3,1930.2,1.82472158]
[1617289683331,73.1585,1931.3,1930.2,5.96971056]
[1617289683530,73.1585,1931.3,1931.0,2.90695]
[1617289684433,1.38,1931.3,1931.0,2.90695]
[1617289684634,96.7967,1931.7,1931.0,2.90695]
[1617289685539,2.90695,1931.1,1931.0,2.90695]
[1617289687640,2.90695,1931.3,1931.0,2.90695]
[1617289687840,2.90695,1931.3,1931.0,4.06515]
[1617289689339,2.90695,1931.3,1931.1,60.0209]
[1617289689541,2.90695,1931.5,1931.2,2.90695]
[1617289691642,2.90695,1931.5,1931.4,2.90695]
[1617289699854,2.90695,1931.5,1931.4,4.42775]
[1617289700254,2.90695,1931.5,1931.4,1.5208]
[1617289701655,2.90695,1931.5,1931.4,4.42775]
[1617289703661,2.90695,1931.5,1931.4,2.90695]
[1617289704064,4.24945,1931.5,1931.3,86.1287]
[1617289705363,4.24945,1931.5,1930.4,4.14214571]
[1617289705564,4.24945,1931.5,1930.7,86.6393]
[1617289705765,1.3425,1931.5,1931.1,2.90695]
[1617289706567,86.6393,1931.6,1931.1,2.90695]
[1617289707769,2.90695,1931.2,1931.1,2.90695]
[1617289711976,2.90695,1931.2,1930.7,86.6393]
[1617289713778,2.90695,1930.8,1930.7,89.54625]
[1617289721783,2.90695,1931.0,1930.7,89.54625]
[1617289723184,2.90695,1931.0,1930.7,90.54785]
[1617289723384,86.6393,1931.6,1930.7,90.54785]
[1617289723584,27.8784,1932.1,1930.7,4.94435]
[1617289723785,27.8784,1932.1,1931.4,67.94845]
[1617289725787,2.90695,1931.5,1931.4,67.94845]
[1617289725989,2.90695,1931.5,1931.4,4.24325]
[1617289726188,2.90695,1931.5,1931.4,2.90695]
[1617289728793,2.90695,1931.5,1931.4,3.94925]
[1617289728995,2.90695,1931.5,1931.4,2.90695]
[1617289730494,2.90695,1931.5,1931.4,3.93725]
[1617289731697,2.90695,1931.5,1931.4,2.90695]
[1617289734601,3.92915,1931.5,1931.4,2.90695]
[1617289734800,2.90695,1931.5,1931.4,2.90695]
[1617289737103,60.92275,1931.5,1931.4,2.90695]
[1617289737501,60.92275,1931.5,1930.8,58.0158]
[1617289738101,58.0158,1931.5,1931.0,2.90695]
[1617289740103,58.0158,1931.5,1931.2,2.90695]
[1617289741102,1.2895,1931.7,1931.2,2.90695]
[1617289741704,59.8784,1932.1,1931.2,2.90695]
[1617289741903,76.7361,1931.0,1930.2,4.15360843]
[1617289742105,77.817,1931.0,1930.7,2.90695]
[1617289743306,1.0809,1931.0,1930.7,2.90695]
[1617289743706,32.0,1931.7,1930.7,2.90695]
[1617289743906,32.0,1931.7,1931.0,79.1395]
[1617289744106,32.0,1931.7,1931.1,2.90695]
[1617289744306,2.0,1931.7,1931.1,2.90695]
[1617289744906,2.0,1931.7,1931.1,4.43645]
[1617289745607,14.532,1931.8,1931.1,4.43645]
[1617289746207,29.8784,1932.1,1931.5,2.90695]
[1617289746807,59.8784,1932.1,1931.5,2.90695]
[1617289747207,57.8784,1932.1,1931.5,2.90695]
[1617289747408,27.8784,1932.1,1931.5,2.90695]
[1617289748009,27.8784,1932.1,1931.5,4.48765]
[1617289748209,2.90695,1931.6,1931.5,4.48765]
[1617289752414,2.90695,1931.6,1931.5,2.90695]
[1617289762030,2.90695,1931.6,1931.5,65.29525]
[1617289764231,27.8784,1932.1,1931.5,65.29525]
[1617289764232,2.90695,1931.8,1931.5,65.29525]
[1617289764832,27.8784,1932.1,1931.5,65.29525]
[1617289766433,27.8784,1932.1,1932.0,2.90695]
[1617289768339,30.78535,1932.1,1932.0,2.90695]
[1617289770939,27.8784,1932.1,1932.0,2.90695]
[1617289772541,27.8784,1932.1,1932.0,75.10485]
[1617289775845,27.8784,1932.1,1932.0,2.90695]
[1617289783957,27.8784,1932.1,1932.0,4.17685]
[1617289785357,27.8784,1932.1,1932.0,2.90695]
[1617289785959,27.8784,1932.1,1932.0,88.56445]
[1617289786559,27.8784,1932.1,1932.0,85.6575]
[1617289791863,27.8784,1932.1,1931.8,2.90695]
[1617289792464,2.90695,1931.9,1931.8,2.90695]
[1617289796467,2.90695,1931.9,1931.6,2.90695]
[1617289798568,2.90695,1931.7,1931.6,2.90695]
[1617289802276,2.90695,1931.7,1931.6,73.85815]
[1617289804076,2.90695,1931.7,1931.6,2.90695]
[1617289807879,2.90695,1931.7,1931.6,3.99095]
[1617289809883,2.90695,1931.7,1931.6,2.90695]
[1617289824197,2.89104599,1931.7,1931.6,2.90695]
[1617289827505,2.89104599,1931.7,1931.6,4.52975]
[1617289828905,2.89104599,1931.7,1931.6,2.90695]
[1617289829905,4.26144599,1931.7,1931.6,2.90695]
[1617289830306,4.26144599,1931.7,1931.4,58.5]
[1617289830708,2.90695,1931.5,1931.4,58.5]
[1617289830909,2.90695,1931.5,1931.2,2.90695]
[1617289832608,2.90695,1931.3,1931.2,2.90695]
[1617289835208,2.90695,1931.3,1931.2,2.89117589]
[1617289856735,2.90695,1931.5,1931.2,2.89117589]
[1617289858839,2.90695,1931.5,1931.4,2.90695]
[1617289862240,2.90695,1931.5,1930.5,5.99300305]
[1617289862440,4.21615,1931.5,1931.4,62.8107]
[1617289865446,2.90695,1931.5,1931.4,62.8107]
[1617289866245,2.90695,1931.5,1931.4,1.2888]
[1617289866845,2.90695,1931.7,1931.4,4.19575]
[1617289868945,2.90695,1931.7,1931.6,2.90695]
[1617289874447,2.90695,1931.7,1931.5,58.3089]
[1617289874647,4.12575,1931.7,1931.5,58.3089]
[1617289875948,2.90695,1931.7,1931.5,58.3089]
[1617289876951,2.90695,1931.7,1931.5,61.21585]
[1617289877150,2.90695,1931.7,1931.5,2.90695]
[1617289877550,4.23385,1931.7,1931.5,2.90695]
[1617289886565,2.90695,1931.7,1931.5,2.90695]
[1617289886765,3.99265,1931.7,1931.5,2.90695]
[1617289887971,2.90695,1931.7,1931.5,2.90695]
[1617289901992,3.93605,1931.7,1931.5,2.90695]
[1617289902490,58.7618,1931.6,1931.5,2.90695]
[1617289907205,58.7618,1931.6,1931.3,2.90695]
[1617289909009,2.90695,1931.7,1931.3,2.90695]
[1617289909207,2.90695,1931.7,1931.6,2.90695]
[1617289911110,2.90695,1931.7,1931.4,2.90695]
[1617289911311,85.3348,1931.6,1931.4,2.90695]
[1617289911710,2.90695,1931.7,1931.4,2.90695]
[1617289911912,2.90695,1931.7,1931.4,63.30515]
[1617289913212,2.90695,1931.5,1931.4,63.30515]
[1617289914214,2.90695,1931.5,1931.4,2.90695]
[1617289915916,3.97105,1931.5,1931.4,2.90695]
[1617289917717,5.00455,1931.5,1931.4,2.90695]
[1617289918722,3.97105,1931.5,1931.4,2.90695]
[1617289918924,70.7301,1931.4,1930.6,4.1933663]
[1617289919126,1.0641,1931.5,1930.8,2.90695]
[1617289919726,2.0973,1931.5,1930.8,2.90695]
[1617289920126,2.11250156,1931.5,1930.8,2.90695]
[1617289920327,84.8673,1930.9,1930.8,2.90695]
[1617289920526,1.2547,1930.9,1930.8,2.90695]
[1617289920927,1.2547,1930.9,1930.8,1.13515]
[1617289921127,1.2547,1930.9,1930.8,0.92825]
[1617289921326,58.5026,1930.8,1930.6,2.90695]
[1617289923333,2.90695,1930.7,1930.6,2.90695]
[1617289924632,73.55435,1930.7,1930.6,2.90695]
[1617289925433,2.90695,1930.7,1930.6,2.90695]
[1617289927438,70.6088,1931.3,1930.6,3.91465]
[1617289927439,2.90695,1930.9,1930.6,3.91465]
[1617289927639,70.6088,1931.3,1930.6,3.91465]
[1617289928440,70.6088,1931.3,1931.2,71.5163]
[1617289929341,73.51575,1931.3,1931.2,71.5163]
[1617289929741,2.90695,1931.3,1930.9,2.90695]
[1617289929941,2.90695,1931.3,1931.0,83.1071]
[1617289931341,2.90695,1931.1,1931.0,83.1071]
[1617289936246,2.90695,1931.1,1930.9,2.90695]
[1617289936446,15.2119,1931.4,1930.9,2.90695]
[1617289936649,15.2119,1931.4,1931.1,65.9752]
[1617289937447,18.11885,1931.4,1931.3,2.90695]
[1617289944053,18.11885,1931.4,1931.1,76.9211]
[1617289945555,2.90695,1931.2,1931.1,76.9211]
[1617289949468,2.90695,1931.2,1931.1,2.90695]
[1617289950767,15.2119,1931.4,1931.1,2.90695]
[1617289950967,15.2119,1931.4,1931.1,4.23335]
[1617289951168,15.2119,1931.4,1931.1,67.97775]
[1617289951668,15.2119,1931.4,1931.3,2.90695]
[1617289952268,7.3968,1931.4,1931.3,2.90695]
[1617289952469,14.799,1931.6,1931.5,89.3585]
[1617289952770,14.799,1931.6,1931.3,2.90695]
[1617289953568,14.799,1931.6,1931.5,2.90695]
[1617289955674,17.70595,1931.6,1931.5,2.90695]
[1617289956074,14.799,1931.6,1931.5,2.90695]
[1617289956274,14.799,1931.6,1931.5,4.06455]
[1617289957474,76.4921,1932.8,1931.5,4.06455]
[1617289957674,76.4921,1932.8,1932.3,64.3794]
[1617289959679,2.90695,1932.4,1932.3,67.28635]
[1617289960777,2.90695,1932.4,1932.3,4.39925]
[1617289961777,2.90695,1932.4,1932.3,2.90695]
[1617289966381,2.90695,1932.4,1932.3,88.27735]
[1617289968984,13.8802,1933.1,1932.3,2.90695]
[1617289969184,13.8802,1933.1,1932.4,85.3355]
[1617289969785,13.8802,1933.1,1933.0,2.90695]
[1617289969985,13.8802,1933.1,1933.0,3.96615]
[1617289970185,13.8802,1933.1,1933.0,4.99925]
[1617289970385,13.8802,1933.1,1933.0,3.96615]
[1617289970787,2.584,1933.6,1933.0,3.96615]
[1617289970985,12.0,1933.7,1933.6,84.064]
[1617289971891,14.90695,1933.7,1933.6,84.064]
[1617289972290,14.90695,1933.7,1933.6,85.3473]
[1617289975291,14.90695,1933.7,1933.6,84.064]
[1617289977496,14.90695,1933.7,1932.5,1.3078]
[1617289977897,12.0,1933.7,1933.3,2.90695]
[1617289979001,12.0,1933.7,1932.9,57.9878]
[1617289979799,2.90695,1933.0,1932.9,57.9878]
[1617289986504,2.90695,1933.0,1932.8,2.90695]
[1617289986704,2.90695,1933.0,1932.5,81.8008]
[1617289987708,2.90695,1933.0,1932.0,2.0]
[1617289987907,1.2809,1933.5,1932.9,83.03705]
[1617289988806,12.0,1933.7,1932.9,83.03705]
[1617289990009,2.90695,1933.0,1932.9,83.03705]
[1617289997517,2.90695,1933.0,1930.3,4.13817769]
[1617289997717,2.90695,1933.0,1932.4,84.9392]
[1617289998115,2.90695,1932.5,1932.4,84.9392]
[1617290000017,2.90695,1932.5,1932.4,87.84615]
[1617290015630,2.90695,1932.5,1932.4,2.90695]
[1617290015631,4.37045,1932.5,1932.4,2.90695]